Cogmind - Beta 16.1 @@@ ROGUE MODE // 2026.03.16 @ 03:40:34 Player: Ez Result: Self-destructed Performance ------------- Evolutions (1) 500 Regions Visited (3) 600 Robots Destroyed (19) 95 Value Destroyed (432) 432 Prototype IDs (0) 0 Alien Tech Used (0) 0 Bonus (0) 0 TOTAL SCORE: 1627 Bonus ------- None Cogmind --------- Core Integrity 400/400 Matter 300/300 Energy 160/160 System Corruption 0% Temperature Cool (0) Movement Rolling (100) Location -9/Materials Parts ------- > --- POWER (1) -------- Light Nuclear Core > --- PROPULSION (4) --- Compact Wheel Compact Wheel > --- UTILITY (2) ------ Heat Sink Large Storage Unit > --- WEAPON (2) ------- Light Assault Rifle Grenade Launcher > --- INVENTORY (15) --- Ion Engine Light Ion Engine Small Storage Unit Huge Storage Unit Signal Interpreter Light Assault Rifle Light Assault Rifle Datajack Datajack Datajack Welding Torch Peak State ------------ > --- POWER ------------ Light Nuclear Core > --- PROPULSION ------- Compact Wheel Compact Wheel > --- UTILITY ---------- Heat Sink Large Storage Unit > --- WEAPON ----------- Light Assault Rifle Grenade Launcher > --- INVENTORY -------- Ion Engine Light Ion Engine Small Storage Unit Huge Storage Unit Signal Interpreter Light Assault Rifle Light Assault Rifle Datajack Datajack Datajack Welding Torch [Rating: 10] Favorites ----------- Power Light Nuclear Core Engine Ion Engine Power Core Light Nuclear Core Propulsion Light Treads Treads Light Treads Wheel Compact Wheel Utility Heat Sink Device Heat Sink Storage Large Storage Unit Weapon Grenade Launcher Energy Gun EM Pulse Gun Ballistic Gun Assault Rifle Launcher Grenade Launcher Special Weapon Welding Torch Build | -11 -10 -10 -9 ------- Run | Yrd Mat Min Mat Slots Evolved 2 | . . . 2 Power . | . . . . Propulsion 2 | . . . 2 Utility . | . . . . Weapon . | . . . . Parts Attached 16 | 6 10 . . Power 2 | 1 1 . . Engine 1 | 1 . . . Core 1 | . 1 . . Reactor . | . . . . Propulsion 4 | 2 2 . . Treads 2 | 2 . . . Leg . | . . . . Wheel 2 | . 2 . . Hover . | . . . . Flight . | . . . . Utility 3 | 1 2 . . Device 1 | . 1 . . Storage 2 | 1 1 . . Processor . | . . . . Hackware . | . . . . Protection . | . . . . Artifact . | . . . . Weapon 7 | 2 5 . . Energy Gun 3 | 1 2 . . Energy Cannon . | . . . . Ballistic Gun 2 | 1 1 . . Ballistic Cannon . | . . . . Launcher 1 | . 1 . . Special Weapon 1 | . 1 . . Impact Weapon . | . . . . Slashing Weapon . | . . . . Piercing Weapon . | . . . . Special Melee Weapon . | . . . . Unidentified Prototypes . | . . . . Parts Lost 6 | . 6 . . Power 1 | . 1 . . Propulsion 1 | . 1 . . Utility . | . . . . Weapon 4 | . 4 . . Highest Loss Streak 2 | . 2 . . To Critical Strikes . | . . . . Average Backups 6 | 1 6 11 . Power 1 | 1 1 2 . Propulsion . | . . . . Utility 2 | . 2 3 . Weapon . | . . 2 . Tool/Special . | . . . . Unused Backups 10 | . 1 . 9 Power 2 | . . . 2 Propulsion . | . . . . Utility 2 | . . . 2 Weapon 3 | . 1 . 2 Tool/Special 3 | . . . 3 Average Slot Usage (%) 89 | . 88 100 . Engine 5 | . 5 . . Core 8 | . 8 14 . Treads 22 | . 23 . . Wheel 2 | . 1 28 . Device 12 | . 12 14 . Storage 14 | . 14 14 . Energy Gun 6 | . 7 . . Ballistic Gun 5 | . 5 14 . Launcher 8 | . 8 14 . Peak Build Rating 10 | 6 10 10 . Average Rating 7 | 3 7 10 . On Entrance 6 | . 6 10 10 Avg Prop Armor Cover (%) . | . . . . Naked Turns . | . . . . Heaviest Build 31 | 14 31 30 . Greatest Support 40 | 40 40 32 . Greatest Overweight (x) 1 | . 1 . . Average Overweight (x) . | . . . . Largest Inventory Capacity 15 | 8 15 15 . Average Capacity 13 | 6 13 15 . Most Carried 13 | 5 13 11 . Average Carried 6 | 2 6 11 . Final Capacity 15 | 8 15 15 15 Final Carried 11 | 1 11 11 11 Class Distribution -------------------- 100% | Mutant Dominant Class ---------------- Mutant | -10/Materials Mutant | -10/Mines Mutant | -9/Materials Resources | -11 -10 -10 -9 ----------- Run | Yrd Mat Min Mat Matter Collected 496 | 122 272 102 . Remotely . | . . . . Salvage Created 543 | . 543 . . Parts 32 | . 32 . . Haulers Intercepted . | . . . . Recyclers Shooed . | . . . . Parts Field Recycled . | . . . . Retrieved Matter . | . . . . Parts Self-Destructed . | . . . . Prevented . | . . . . Parts Restored . | . . . . Kills | -11 -10 -10 -9 ------- Run | Yrd Mat Min Mat Combat Hostiles Destroyed 15 | . 15 . . Guns 8 | . 8 . . AOE 7 | . 7 . . Classes Destroyed 5 | . 5 . . Worker 1 | . 1 . . Tunneler 1 | . 1 . . Recycler 2 | . 2 . . Swarmer 6 | . 6 . . Grunt 9 | . 9 . . Best Kill Streak 5 | . 5 . . Combat Bots Only 4 | . 4 . . Max Kills in Single Turn 3 | . 3 . . Gunslinging . | . . . . Exploded 3 | . 3 . . Melee . | . . . . Uniques/NPCs Destroyed . | . . . . Combat | -11 -10 -10 -9 -------- Run | Yrd Mat Min Mat Hostile Shots Fired 93 | . 93 . . Missed 23 | . 23 . . Hits 70 | . 70 . . Projectile 70 | . 70 . . Damage Taken 877 | . 877 . . Core 199 | . 199 . . Absorbed by Shields . | . . . . Core Remaining (%) 60 | 100 . 20 . Volleys Fired 39 | . 39 . . Largest 2 | . 2 . . Hottest 70 | . 70 . . Shots Fired 63 | . 63 . . Gun 48 | . 48 . . Cannon . | . . . . Launcher 10 | . 10 . . Special 5 | . 5 . . Kinetic 22 | . 22 . . Thermal 5 | . 5 . . Explosive 10 | . 10 . . Electromagnetic 26 | . 26 . . Robot Hit Streak 12 | . 12 . . Robot Miss Streak 3 | . 3 . . Penetration Max . | . . . . Secondary Targets 1 | . 1 . . Max Gunslinging Chain 1 | . 1 . . Shots Hit Robots 36 | . 36 . . Core Hits 30 | . 30 . . Critical Kills . | . . . . Critical Parts Destroyed . | . . . . Critical Strikes . | . . . . Melee Attacks . | . . . . Impact . | . . . . Slashing . | . . . . Piercing . | . . . . Sneak Attacks . | . . . . Combat Hostiles . | . . . . Follow-up Attacks . | . . . . Damage Inflicted 1088 | . 1088 . . Guns 418 | . 418 . . Cannons . | . . . . Explosions 670 | . 670 . . Melee . | . . . . Ramming . | . . . . Kinetic 170 | . 170 . . Thermal 60 | . 60 . . Explosive 610 | . 610 . . Electromagnetic 248 | . 248 . . Impact . | . . . . Slashing . | . . . . Piercing . | . . . . Highest Corruption . | . . . . Average Corruption . | . . . . Corruption Purged . | . . . . Corruption Blocked . | . . . . Overload Shots . | . . . . Overflow Damage 1 | . 1 . . Projectiles . | . . . . Explosions 1 | . 1 . . Melee . | . . . . Knockbacks . | . . . . Impact . | . . . . Kinetic . | . . . . Secondary . | . . . . Self-Inflicted Damage 68 | . 68 . . Shots 5 | . 5 . . Rammed . | . . . . Targets Rammed 1 | . 1 . . Kicked . | . . . . Crushed 1 | . 1 . . Highest Temperature 108 | . 108 . . Average Temperature 44 | . 44 . . Received Heat Transfer 375 | . 375 . . Siege Activations . | . . . . Martial Activations . | . . . . Shielding Activations . | . . . . Robots Disrupted . | . . . . Combat Hostiles . | . . . . Robots Corrupted . | . . . . Combat Hostiles . | . . . . Parts Fried . | . . . . Impact Corruptions . | . . . . Robots Melted . | . . . . Combat Hostiles . | . . . . Parts Melted . | . . . . Heat Transferred 100 | . 100 . . Parts Sabotaged . | . . . . Parts Stolen . | . . . . Parts Stripped . | . . . . Power Chain Reactions 1 | . 1 . . Alert | -11 -10 -10 -9 ------- Run | Yrd Mat Min Mat Maximum Alert Level . | . . . . Low Security (%) 100 | 100 100 100 . Level 1 . | . . . . Level 2 . | . . . . Level 3 . | . . . . Level 4 . | . . . . Level 5 . | . . . . High Security . | . . . . Max Security . | . . . . Peak Influence 199 | . 199 3 . Initial 3 | . . 3 . Average 56 | . 60 . . Influence Increases 484 | . 484 . . Destroy 0b10 Robot/C 300 | . 300 . . Destroy 0b10 Robot/NC 20 | . 20 . . Destroy Leader 70 | . 70 . . Successful Hack 10 | . 10 . . Disable Machine 30 | . 30 . . Destroy Structure 54 | . 54 . . Influence Decreases 484 | . 476 8 . Entered New Map 5 | . . 5 . Time Decay 425 | . 422 3 . Lost Part 54 | . 54 . . Squads Dispatched 3 | . 3 . . Investigation 1 | . 1 . . Extermination . | . . . . Reinforcement 2 | . 2 . . Assault . | . . . . Garrison . | . . . . Intercept . | . . . . Searches Triggered . | . . . . Construction Impeded . | . . . . Haulers Reinforced . | . . . . Active Scanning Responses . | . . . . Cargo Convoy Interrupts . | . . . . Stealth | -11 -10 -10 -9 --------- Run | Yrd Mat Min Mat Distress Signals . | . . . . Communications Jammed . | . . . . Distress Signals . | . . . . Times Spotted 30 | . 30 . . Peak Tracking Total 7 | . 7 . . Tactical Retreats . | . . . . Traps | -11 -10 -10 -9 ------- Run | Yrd Mat Min Mat Traps Triggered 1 | . 1 . . Indirectly . | . . . . Trap Hack Attempts . | . . . . Triggered . | . . . . Disarmed . | . . . . Reprogrammed . | . . . . Reused . | . . . . Traps Extracted . | . . . . Installed . | . . . . Triggered . | . . . . Machines | -11 -10 -10 -9 ---------- Run | Yrd Mat Min Mat Machines Disabled 2 | . 2 . . Max in Single Turn 1 | . 1 . . Machines Repaired . | . . . . Machines Dismantled . | . . . . Machines Sabotaged . | . . . . Overloaded Fab Kills . | . . . . Hacking | -11 -10 -10 -9 --------- Run | Yrd Mat Min Mat Machines Accessed 3 | . 3 . . Terminals 3 | . 3 . . Fabricators . | . . . . Repair Stations . | . . . . Recycling Units . | . . . . Scanalyzers . | . . . . Garrison Access . | . . . . Total Hacks 4 | . 4 . . Successful 2 | . 2 . . Failed 2 | . 2 . . Catastrophic 1 | . 1 . . Database Lockouts . | . . . . Manual 3 | . 3 . . Terminals 4 | . 4 . . Fabricators . | . . . . Repair Stations . | . . . . Recycling Units . | . . . . Scanalyzers . | . . . . Garrison Access . | . . . . Terminal Hacks 1 | . 1 . . Locate Traps 1 | . 1 . . Fabricator Hacks . | . . . . Repair Station Hacks . | . . . . Recycling Unit Hacks . | . . . . Scanalyzer . | . . . . Garrison Access Hacks . | . . . . Unauthorized Hacks 1 | . 1 . . Terminals 1 | . 1 . . Operators 1 | . 1 . . Fabricators . | . . . . Repair Stations . | . . . . Recycling Units . | . . . . Scanalyzers . | . . . . Garrison Access . | . . . . Data Cores Recovered . | . . . . Used . | . . . . Hacking Detections 2 | . 2 . . Full Trace Events . | . . . . Feedback Events . | . . . . Feedback Blocked . | . . . . Robot Schematics Acquired . | . . . . Robots Built . | . . . . Authchips . | . . . . Time . | . . . . Total Robot Build Rating . | . . . . Part Schematics Acquired . | . . . . Parts Built . | . . . . Authchips . | . . . . Time . | . . . . Total Part Build Rating . | . . . . Part Studies Acquired . | . . . . Parts Repaired . | . . . . Time . | . . . . Parts Recycled . | . . . . Recycled Matter . | . . . . Retrieved Matter . | . . . . Retrieved Components . | . . . . Parts Scanalyzed . | . . . . Part Schematics Acquired . | . . . . Parts Damaged . | . . . . Bothacking | -11 -10 -10 -9 ------------ Run | Yrd Mat Min Mat Used RIF Installer . | . . . . Robots Hacked . | . . . . Non-combat . | . . . . Combat . | . . . . Robot Hacks Applied . | . . . . Relay Couplers Released . | . . . . Fabnet Peak Effective % . | . . . . Robots Rewired . | . . . . Allies Hacked . | . . . . Hacks Repelled . | . . . . Allies | -11 -10 -10 -9 -------- Run | Yrd Mat Min Mat Total Allies . | . . . . Largest Group . | . . . . Highest-Rated Group . | . . . . Highest-Rated Ally . | . . . . Total Orders . | . . . . Ally Attacks . | . . . . Total Damage . | . . . . Kills . | . . . . Allies Corrupted . | . . . . Allies Melted . | . . . . Intel | -11 -10 -10 -9 ------- Run | Yrd Mat Min Mat Active Infowar (turns) . | . . . . Robot Analysis Total . | . . . . Derelict Logs Recovered . | . . . . Drone Launches . | . . . . Drone Recoveries . | . . . . Exploration | -11 -10 -10 -9 ------------- Run | Yrd Mat Min Mat Turns Passed 1583 | 49 1473 61 . Spaces Moved 893 | 38 793 62 . Core 21 | 21 . . . Treads 721 | 17 704 . . Legs . | . . . . Wheels 151 | . 89 62 . Hover . | . . . . Flight . | . . . . Fastest Speed 50 | 50 100 100 . Average Speed 157 | 99 164 100 . Slowest Speed 240 | 160 240 100 . Overloaded Moves . | . . . . Propulsion Burnouts . | . . . . Robots Hopped . | . . . . Potential Cave-ins . | . . . . Cave-ins Triggered . | . . . . Exploration Rate (%) 28 | 3 85 23 1 Regions Visited 3 Branch Regions 1 Pre-discovered Areas . | . . . . Known Exits Taken . | . . . . Unknown Exits Taken 3 | 1 1 1 . Scrap Searched . | . . . . Spaces Dug . | . . . . Terrain Destroyed 50 | . 50 . . Melee . | . . . . Projectile . | . . . . AOE 50 | . 50 . . Terrain Rammed . | . . . . Walls Destroyed . | . . . . Machines Disabled . | . . . . Actions | -11 -10 -10 -9 --------- Run | Yrd Mat Min Mat Total 1007 | 48 898 61 . Wait 34 | . 34 . . Move 890 | 37 792 61 . Hop . | . . . . Pick Up 24 | 5 19 . . Fast Attach 2 | 2 . . . Attach 13 | 4 9 . . Detach 1 | . 1 . . Swap 1 | . 1 . . Drop 2 | . 2 . . Fire 39 | . 39 . . Melee . | . . . . Ram . | . . . . Kick . | . . . . Crush 1 | . 1 . . Escape Stasis . | . . . . Rewire . | . . . . Trap . | . . . . Miscellaneous . | . . . . Route ------- -11/Scrapyard -10/Materials (discovered 5 exits: [*Mat x3] / [*Min] / [*Sub]) -10/Mines -9/Materials History --------- Turn | Location | Event 4 | -11/Scrapyard | Discovered new exit (range 16) 50 | -11/Scrapyard | Entered Materials 261 | -10/Materials | Discovered new exit (range 8) 264 | -10/Materials | Discovered new exit (range 16) 303 | -10/Materials | Build established: Mutant 479 | -10/Materials | Discovered new exit (range 16) 636 | -10/Materials | Core integrity fell below 50% 672 | -10/Materials | Discovered new exit (range 16) 1104 | -10/Materials | Discovered new exit (range 9) 1523 | -10/Materials | Entered Mines 1578 | -10/Mines | Discovered new exit (range 7) 1584 | -10/Mines | Entered Materials 1584 | -9/Materials | Evolved 2 slots: Propulsion x2 1584 | -9/Materials | Self-destructed Last Messages --------------- U-05 Engineer builds a Wall. U-05 Engineer lays Concrete. U-05 Engineer builds a Wall. U-05 Engineer lays Concrete. U-05 Engineer builds a Door. Acquired 62 matter. K-01 Serf cleans the Recycling Unit. Acquired 1 matter. K-01 Serf cleans the Terminal. Acquired Lgt. Assault Rifle. Acquired Com. Wheel. Dropped Lgt. Treads. R-06 Scavenger collects Lgt. Treads. LOCATION=UNKNOWN GOAL=ESCAPE Extracted 102 matter. EXIT=FOUND PARAMETERS=PROPULSION+2 LOCATION=UNKNOWN GOAL=ESCAPE Map ----- +----------------------------------------------------+ | | | | | | | | | | | | | | | | | | | | | | | | | | | | | | | ?????????????????????????????????????????????????? | | ?????????????????????????????????????????????????? | | ?????????????????????????????????????????????????? | | ?????????????????????????????????????????????????? | | ?????????????????????????????????????????????????? | | ?????????????????????????????????????????????????? | | ?????????????????????????????????????????????????? | | ?????????????????????????????????????????????????? | | ???????????????????????#####?????????????????????? | | ???????????????????????# #?????????????????????? | | ???????????????????????# @ #?????????????????????? | | ???????????????????????# #?????????????????????? | | ???????????????????????# #?????????????????????? | | ???????????????????????# ?????????????????????? | | ???????????????????????+ ????????????????????? | | ???????????????????????# ???????????????????? | | ???????????????????????# ???????????????????? | | ???????????????????????# ??????????????????? | | ???????????????????????# """ ?????????????????? | | ???????????????????????# """ "????????????????? | | ???????????????????????# """ "????????????????? | | ???????????????????????# ??? ???????????????? | | ???????????????????????# ???? ???????????????? | | ???????????????????????? ?????????????????????? | | ????????????????????????####?????????????????????? | | ?????????????????????????????????????????????????? | | ?????????????????????????????????????????????????? | | ?????????????????????????????????????????????????? | | ?????????????????????????????????????????????????? | | ?????????????????????????????????????????????????? | | ?????????????????????????????????????????????????? | | ?????????????????????????????????????????????????? | | ?????????????????????????????????????????????????? | | ?????????????????????????????????????????????????? | | ?????????????????????????????????????????????????? | +----------------------------------------------------+ Best States ------------- Heat Dissipation 35 Energy Generation 14 Energy Capacity 250 Matter Stores 300 Matter Capacity 300 Sight Range 16 Terrain Scan Density 10 Evasion (%) 50 Recoil Reduction 2 Item Schematics ----------------- None Robot Schematics ------------------ None Fabricated ------------ Nothing Repaired ---------- Nothing Studied --------- None Alien Tech Used ----------------- None Achievements -------------- None Challenges ------------ None Game ------ Seed MyomerOvertunedDrive Manual? 0 Play Time 00:15:18 Cumulative 23.0 hours Start 2026.03.16 @ 03:23:14 End 2026.03.16 @ 03:40:34 Sessions 1 Manual Loads 0 Difficulty Rogue Special Mode None Game No. 69 Rogue 67 Adventurer 2 Explorer 0 Win Type - Total 0 Types 0/0/0/0/0/0/0/0/0/0 Lore% 4 Gallery% 15 Achievement% 14 Wizard Run 0 Options --------- Layout 1 ASCII 0 Keyboard 0 Movement Mouse Keybinds 0 Fullscreen 2 Font 32/SmallcapsGlow Map View 50x35 Zoom Use 0% Tactical HUD 0 Map Filters NONE Filters NONE Steam 1 RUN: f99db6aa-75b0-420e-b056-e12a5f345163